fUSD/lending_fUSD_20240331
["ID","MTS","AMOUNT","RATE_DAILY","PERIOD"]
[321088839,1711890651596,-500.0,0.00054795,120]
[321088840,1711890651605,-500.0,0.00054795,120]
[321088841,1711890651615,-500.0,0.00054795,120]
[321088842,1711890651625,-500.0,0.00054795,120]
[321088843,1711890651634,-500.0,0.00054795,120]
[321088844,1711890651644,-500.0,0.00054795,120]
[321088845,1711890651654,-500.0,0.00054795,120]
[321088846,1711890651663,-500.0,0.00054795,120]
[321088847,1711890651673,-500.0,0.00054795,120]
[321088848,1711890651684,-500.0,0.00054795,120]
[321088849,1711890651694,-500.0,0.00054795,120]
[321088850,1711890651704,-500.0,0.00054795,120]
[321088851,1711890651714,-500.0,0.00054795,120]
[321088852,1711890651724,-500.0,0.00054795,120]
[321088853,1711890651734,-500.0,0.00054795,120]
[321088854,1711890651743,-500.0,0.00054795,120]
[321088855,1711890651753,-890.0,0.00054795,120]
[321088856,1711890651763,-500.0,0.00054795,120]
[321088857,1711890651772,-500.0,0.00054795,120]
[321088858,1711890651782,-500.0,0.00054795,120]
[321088859,1711890651792,-500.0,0.00054795,120]
[321088860,1711890651802,-500.0,0.00054795,120]
[321088861,1711890651812,-500.0,0.00054795,120]
[321088862,1711890651822,-500.0,0.00054795,120]
[321088863,1711890651833,-500.0,0.00054795,120]
[321088864,1711890651843,-500.0,0.00054795,120]
[321088865,1711890651853,-500.0,0.00054795,120]
[321088866,1711890651863,-500.0,0.00054795,120]
[321088867,1711890651873,-500.0,0.00054795,120]
[321088868,1711890651884,-500.0,0.00054795,120]
[321088869,1711890651894,-500.0,0.00054795,120]
[321088870,1711890651903,-500.0,0.00054795,120]
[321088871,1711890651912,-500.0,0.00054795,120]
[321088872,1711890651922,-500.0,0.00054795,120]
[321088873,1711890651934,-500.0,0.00054795,120]
[321088874,1711890651944,-500.0,0.00054795,120]
[321088875,1711890651954,-500.0,0.00054795,120]
[321088876,1711890651963,-500.0,0.00054795,120]
[321088877,1711890651973,-500.0,0.00054795,120]
[321088878,1711890651983,-514.0,0.00054795,120]
[321088879,1711890651992,-500.0,0.00054795,120]
[321088880,1711890652002,-581.0,0.00054795,120]
[321088881,1711890652012,-900.0,0.00054795,120]
[321088882,1711890652021,-900.0,0.00054795,120]
[321088883,1711890652031,-900.0,0.00054795,120]
[321088884,1711890652041,-206.600373,0.00054795,120]
[321088885,1711890652050,-500.0,0.00054795,120]
[321088886,1711890652060,-500.0,0.00054795,120]
[321088887,1711890652070,-500.0,0.00054795,120]
[321088888,1711890652079,-500.0,0.00054795,120]
[321088889,1711890652089,-500.0,0.00054795,120]
[321088890,1711890652099,-500.0,0.00054795,120]
[321088891,1711890652108,-500.0,0.00054795,120]
[321088892,1711890652118,-500.0,0.00054795,120]
[321088893,1711890652127,-500.0,0.00054795,120]
[321088894,1711890652137,-500.0,0.00054795,120]
[321088895,1711890652148,-500.0,0.00054795,120]
[321088896,1711890652158,-500.0,0.00054795,120]
[321088897,1711890652167,-500.0,0.00054795,120]
[321088898,1711890652177,-500.0,0.00054795,120]
[321088899,1711890652188,-500.0,0.00054795,120]
[321088900,1711890652198,-500.0,0.00054795,120]
[321088901,1711890652207,-500.0,0.00054795,120]
[321088902,1711890652217,-500.0,0.00054795,120]
[321088903,1711890652227,-500.0,0.00054795,120]
[321088904,1711890652237,-500.0,0.00054795,120]
[321088905,1711890652248,-500.0,0.00054795,120]
[321088906,1711890652257,-500.0,0.00054795,120]
[321088907,1711890652267,-500.0,0.00054795,120]
[321088908,1711890652276,-500.0,0.00054795,120]
[321088909,1711890652286,-928.0,0.00054795,120]
[321088910,1711890652296,-500.0,0.00054795,120]
[321088911,1711890652305,-500.0,0.00054795,120]
[321088912,1711890652315,-500.0,0.00054795,120]
[321088913,1711890652324,-836.0,0.00054795,120]
[321088914,1711890652334,-500.0,0.00054795,120]
[321088915,1711890652344,-500.0,0.00054795,120]
[321088916,1711890652353,-500.0,0.00054795,120]
[321088917,1711890652363,-500.0,0.00054795,120]
[321088918,1711890652374,-500.0,0.00054795,120]
[321088919,1711890652383,-500.0,0.00054795,120]
[321088920,1711890652393,-500.0,0.00054795,120]
[321088921,1711890652403,-500.0,0.00054795,120]
[321088922,1711890652412,-500.0,0.00054795,120]
[321088923,1711890652422,-500.0,0.00054795,120]
[321088924,1711890652434,-500.0,0.00054795,120]
[321088925,1711890652443,-500.0,0.00054795,120]
[321088926,1711890652453,-500.0,0.00054795,120]
[321088927,1711890652463,-500.0,0.00054795,120]
[321088928,1711890652473,-500.0,0.00054795,120]
[321088929,1711890652482,-500.0,0.00054795,120]
[321088930,1711890652492,-500.0,0.00054795,120]
[321088931,1711890652503,-500.0,0.00054795,120]
[321088932,1711890652514,-500.0,0.00054795,120]
[321088933,1711890652524,-1000.0,0.00054795,13]
[321088934,1711890652533,-911.0,0.00054795,120]
[321088935,1711890652543,-1000.0,0.00054795,13]
[321088936,1711890652553,-1000.0,0.00054795,13]
[321088937,1711890652562,-1000.0,0.00054795,13]
[321088938,1711890652572,-1000.0,0.00054795,13]
[321088939,1711890652583,-1000.0,0.00054795,13]
[321088940,1711890652592,-1000.0,0.00054795,13]
[321088941,1711890652602,-1000.0,0.00054795,13]
[321088942,1711890652612,-1000.0,0.00054795,13]
[321088943,1711890652622,-500.0,0.00054795,120]
[321088944,1711890652631,-500.0,0.00054795,120]
[321088945,1711890652641,-500.0,0.00054795,120]
[321088946,1711890652650,-500.0,0.00054795,120]
[321088947,1711890652660,-500.0,0.00054795,120]
[321088948,1711890652670,-500.0,0.00054795,120]
[321088949,1711890652679,-500.0,0.00054795,120]
[321088950,1711890652690,-500.0,0.00054795,120]
[321088951,1711890652699,-500.0,0.00054795,120]
[321088952,1711890652709,-500.0,0.00054795,120]
[321088953,1711890652719,-500.0,0.00054795,120]
[321088954,1711890652729,-500.0,0.00054795,120]
[321088955,1711890652739,-500.0,0.00054795,120]
[321088956,1711890652749,-500.0,0.00054795,120]
[321088957,1711890652759,-500.0,0.00054795,120]
[321088958,1711890652768,-500.0,0.00054795,120]
[321088959,1711890652779,-500.0,0.00054795,120]
[321088960,1711890652788,-500.0,0.00054795,120]
[321088961,1711890652798,-500.0,0.00054795,120]
[321088962,1711890652808,-500.0,0.00054795,120]
[321088963,1711890652817,-500.0,0.00054795,120]
[321088964,1711890652827,-500.0,0.00054795,120]
[321088965,1711890652837,-500.0,0.00054795,120]
[321088966,1711890652847,-500.0,0.00054795,120]
[321088967,1711890652856,-500.0,0.00054795,120]
[321088968,1711890652866,-500.0,0.00054795,120]
[321088969,1711890652876,-500.0,0.00054795,120]
[321088970,1711890652886,-500.0,0.00054795,120]
[321088971,1711890652895,-500.0,0.00054795,120]
[321088972,1711890652905,-500.0,0.00054795,120]
[321088973,1711890652915,-500.0,0.00054795,120]
[321088974,1711890652924,-500.0,0.00054795,120]
[321088975,1711890652936,-500.0,0.00054795,120]
[321088976,1711890652945,-500.0,0.00054795,120]
[321088977,1711890652954,-500.0,0.00054795,120]
[321088978,1711890652964,-500.0,0.00054795,120]
[321088979,1711890652973,-500.0,0.00054795,120]
[321088980,1711890652983,-500.0,0.00054795,120]
[321088981,1711890652992,-500.0,0.00054795,120]
[321088982,1711890653002,-500.0,0.00054795,120]
[321088983,1711890653012,-500.0,0.00054795,120]
[321088984,1711890653021,-500.0,0.00054795,120]
[321088985,1711890653031,-500.0,0.00054795,120]
[321088986,1711890653040,-500.0,0.00054795,120]
[321088987,1711890653049,-500.0,0.00054795,120]
[321088988,1711890653059,-500.0,0.00054795,120]
[321088989,1711890653068,-500.0,0.00054795,120]
[321088990,1711890653077,-500.0,0.00054795,120]
[321088991,1711890653133,-500.0,0.00054795,120]
[321088992,1711890653142,-500.0,0.00054795,120]
[321088993,1711890653151,-500.0,0.00054795,120]
[321088994,1711890653160,-500.0,0.00054795,120]
[321088995,1711890653169,-500.0,0.00054795,120]
[321088996,1711890653178,-500.0,0.00054795,120]
[321088997,1711890653188,-500.0,0.00054795,120]
[321088998,1711890653197,-500.0,0.00054795,120]
[321088999,1711890653206,-500.0,0.00054795,120]
[321089000,1711890653216,-500.0,0.00054795,120]
[321089001,1711890653224,-500.0,0.00054795,120]
[321089002,1711890653233,-500.0,0.00054795,120]
[321089003,1711890653242,-500.0,0.00054795,120]
[321089004,1711890653251,-500.0,0.00054795,120]
[321089005,1711890653264,-500.0,0.00054795,120]
[321089006,1711890653273,-500.0,0.00054795,120]
[321089007,1711890653282,-500.0,0.00054795,120]
[321089008,1711890653290,-500.0,0.00054795,120]
[321089009,1711890653299,-500.0,0.00054795,120]
[321089010,1711890653308,-500.0,0.00054795,120]
[321089011,1711890653317,-1000.0,0.00054795,13]
[321089012,1711890653325,-500.0,0.00054795,120]
[321089013,1711890653334,-1000.0,0.00054795,13]
[321089014,1711890653343,-500.0,0.00054795,120]
[321089015,1711890653351,-1000.0,0.00054795,13]
[321089016,1711890653361,-500.0,0.00054795,120]
[321089017,1711890653370,-1000.0,0.00054795,13]
[321089018,1711890653379,-1000.0,0.00054795,13]
[321089019,1711890653389,-865.0,0.00054795,120]
[321089020,1711890653401,-1000.0,0.00054795,13]
[321089021,1711890653411,-1000.0,0.00054795,13]
[321089022,1711890653421,-608.0,0.00054795,120]
[321089023,1711890653431,-155.93078628,0.000548,120]
[321089024,1711890653440,-1000.0,0.000548,120]
[321089025,1711890653449,-184.5454625,0.000548,120]
[321089026,1711890653458,-157.78120714,0.000548,120]
[321089027,1711890653467,-255.73589361,0.000548,120]
[321089028,1711890653476,-500.0,0.000548,30]
[321089029,1711890653485,-1200.0,0.000548,30]
[321089030,1711890653494,-2000.0,0.000548,30]
[321089031,1711890653504,-200.0,0.000548,30]
[321089032,1711890653514,-500.0,0.000548,30]
[321089033,1711890653523,-867.39923477,0.000548,30]
[321089034,1711890653533,-161.08875712,0.000548,120]
[321089035,1711890653541,-5000.0,0.000548,120]
[321089036,1711890653552,-5300.0,0.0005488,28]
[321089037,1711890653560,-850.09999146,0.000549,120]
[321089038,1711890653569,-222.1300328,0.000549,32]
[321089039,1711890653579,-702.6960967,0.000549,30]
[321089040,1711890653589,-6975.92895244,0.000549,2]
[321089041,1711890653599,-564.78753556,0.000549,53]
[321089042,1711890653608,-415.85359431,0.000549,2]
[321089043,1711890653617,-279.55030644,0.000549,2]
[321089044,1711890653626,-569.30306,0.0005493,72]
[321089045,1711890653635,-792.4232636,0.00054962,2]
[321089046,1711890653646,-200.0,0.00054987,2]
[321089047,1711890653655,-1000.0,0.00054999,120]
[321089048,1711890653665,-275.29,0.00054999,30]
[321089049,1711890653674,-410.0,0.00055,120]
[321089050,1711890653684,-6710.06541484,0.00055,60]
[321089051,1711890653693,-1898.20010306,0.00055,120]
[321089052,1711890653702,-4688.0,0.00055,120]
[321089053,1711890653711,-500.0,0.00055,120]
[321089054,1711890653721,-10487.0,0.00055,120]
[321089055,1711890653730,-1303.93192877,0.00055,120]
[321089056,1711890653739,-89471.39826903,0.00055,120]
[321089057,1711890653748,-279221.42828095,0.00055,30]
[321089058,1711890653757,-207.39458559,0.00055,120]
[321089059,1711890653766,-19847.0,0.00055,120]
[321089060,1711890653776,-500.0,0.00055,120]
[321089061,1711890653785,-266.51435368,0.00055,30]
[321089062,1711890653794,-500.0,0.00055,5]
[321089063,1711890653803,-1000.0,0.00055,55]
[321089064,1711890653812,-1000.0,0.00055,55]
[321089065,1711890653822,-1000.0,0.00055,55]
[321089066,1711890653835,-1000.0,0.00055,55]
[321089067,1711890653844,-1000.0,0.00055,55]
[321089068,1711890653854,-1000.0,0.00055,55]
[321089069,1711890653863,-1000.0,0.00055,55]
[321089070,1711890653872,-1000.0,0.00055,55]
[321089071,1711890653881,-1000.0,0.00055,55]
[321089072,1711890653890,-1000.0,0.00055,55]
[321089073,1711890653899,-33238.83206859,0.00055,120]
[321089074,1711890653907,-479.23,0.00055,10]
[321089075,1711890653916,-200.0,0.00055,120]
[321089076,1711890653925,-20000.0,0.00055,120]
[321089077,1711890653934,-31851.0,0.00055,60]
[321089078,1711890653944,-139043.0,0.00055,30]
[321089079,1711890653953,-1064.9,0.00055,120]
[321089080,1711890653962,-955.3599452,0.00055,15]
[321089081,1711890653971,-2000.0,0.00055,120]
[321089082,1711890653980,-1999.99999802,0.00055,120]
[321089083,1711890653989,-1190.03197631,0.00055,60]
[321089084,1711890653998,-105370.35759886,0.00055,30]
[321089085,1711890654006,-34398.17296069,0.00055,30]
[321089086,1711890654016,-3166.0,0.00055,120]
[321089087,1711890654026,-28562.74447775,0.00055,30]
[321089088,1711890654034,-1000.0,0.00055,120]
[321089089,1711890654043,-5000.0,0.00055,120]
[321089090,1711890654052,-10173.25610866,0.00055,120]
[321089091,1711890654060,-251.976457,0.00055,120]
[321089092,1711890654071,-251.976457,0.00055,120]
[321089093,1711890654080,-151.0,0.00055,120]
[321089094,1711890654089,-151.0,0.00055,120]
[321089095,1711890654098,-376.41199642,0.00055068,120]
[321089096,1711890654106,-500.0,0.00055068,120]
[321089097,1711890654115,-242.92294909,0.00055068,120]
[321089098,1711890654124,-500.0,0.00055068,120]
[321089099,1711890654134,-379.06192822,0.00055068,120]
[321089100,1711890654142,-500.0,0.00055068,120]
[321089101,1711890654151,-500.0,0.00055068,120]
[321089102,1711890654160,-500.0,0.00055068,120]
[321089103,1711890654170,-500.0,0.00055068,120]
[321089104,1711890654178,-500.0,0.00055068,120]
[321089105,1711890654188,-500.0,0.00055068,120]
[321089106,1711890654199,-500.0,0.00055068,120]
[321089107,1711890654208,-500.0,0.00055068,120]
[321089108,1711890654216,-500.0,0.00055068,120]
[321089109,1711890654225,-500.0,0.00055068,120]
[321089110,1711890654234,-553.76768342,0.00055068,120]
[321089111,1711890654244,-500.0,0.00055068,120]
[321089112,1711890654253,-400.0,0.00055068,120]
[321089113,1711890654262,-513.79647078,0.00055068,120]
[321089114,1711890654271,-500.0,0.00055068,2]
[321089115,1711890654280,-500.0,0.00055068,120]
[321089116,1711890654289,-500.0,0.00055068,120]
[321089117,1711890654297,-500.0,0.00055068,120]
[321089118,1711890654307,-500.0,0.00055068,120]
[321089119,1711890654317,-500.0,0.00055068,120]
[321089120,1711890654327,-500.0,0.00055068,120]
[321089121,1711890654337,-239.38021104,0.00055068,120]
[321089122,1711890654346,-500.0,0.00055068,120]
[321089123,1711890654355,-500.0,0.00055068,120]
[321089124,1711890654364,-500.0,0.00055068,120]
[321089125,1711890654373,-557.39128687,0.00055068,120]
[321089126,1711890654382,-500.0,0.00055068,120]
[321089127,1711890654391,-500.0,0.00055068,120]
[321089128,1711890654400,-500.0,0.00055068,120]
[321089129,1711890654409,-518.99236089,0.00055068,120]
[321089130,1711890654418,-500.0,0.00055068,120]
[321089131,1711890654427,-500.0,0.00055068,120]
[321089132,1711890654436,-513.77115201,0.00055068,120]
[321089133,1711890654445,-500.0,0.00055068,120]
[321089134,1711890654454,-500.0,0.00055068,120]
[321089135,1711890654463,-500.0,0.00055068,120]
[321089136,1711890654472,-440.61,0.00055068,120]
[321089137,1711890654481,-514.65644965,0.00055068,120]
[321089138,1711890654493,-500.0,0.00055068,120]
[321089139,1711890654502,-502.68149248,0.00055068,120]
[321089140,1711890654511,-500.0,0.00055068,120]
[321089141,1711890654521,-500.0,0.00055068,120]
[321089142,1711890654531,-510.37498598,0.00055068,120]
[321089143,1711890654541,-500.0,0.00055068,120]
[321089144,1711890654550,-500.0,0.00055068,120]
[321089145,1711890654560,-500.0,0.00055068,120]
[321089146,1711890654570,-500.0,0.00055068,120]
[321089147,1711890654580,-508.73389458,0.00055068,120]
[321089148,1711890654590,-500.0,0.00055068,120]
[321089149,1711890654599,-573.79943487,0.00055068,120]
[321089150,1711890654608,-654.97,0.00055068,120]
[321089151,1711890654618,-500.0,0.00055068,120]
[321089152,1711890654627,-500.0,0.00055068,120]
[321089153,1711890654637,-500.0,0.00055068,120]
[321089154,1711890654646,-500.0,0.00055068,120]
[321089155,1711890654655,-500.0,0.00055068,120]
[321089156,1711890654664,-535.07003317,0.00055068,120]
[321089157,1711890654674,-500.0,0.00055068,120]
[321089158,1711890654684,-500.0,0.00055068,120]
[321089159,1711890654693,-500.0,0.00055068,120]
[321089160,1711890654702,-500.0,0.00055068,120]
[321089161,1711890654712,-1000.0,0.00055068,120]
[321089162,1711890654721,-150.0,0.00055068,120]
[321089163,1711890654730,-500.0,0.00055068,120]
[321089164,1711890654740,-500.0,0.00055068,120]
[321089165,1711890654749,-500.0,0.00055068,120]
[321089166,1711890654759,-199.51,0.00055068,120]
[321089167,1711890654768,-259.39472629,0.00055068,120]
[321089168,1711890654778,-624.99,0.00055068,120]
[321089169,1711890654788,-500.0,0.00055068,120]
[321089170,1711890654798,-500.0,0.00055068,120]
[321089171,1711890654809,-500.0,0.00055068,2]
[321089172,1711890654819,-500.0,0.00055068,120]
[321089173,1711890654828,-500.0,0.00055068,120]
[321089174,1711890654838,-214.82,0.00055068,120]
[321089175,1711890654847,-500.0,0.00055068,120]
[321089176,1711890654857,-1139.05,0.00055068,120]
[321089177,1711890654867,-500.0,0.00055068,120]
[321089178,1711890654876,-500.0,0.00055068,120]
[321089179,1711890654886,-500.0,0.00055068,120]
[321089180,1711890654895,-500.0,0.00055068,120]
[321089181,1711890654904,-1647.33,0.00055068,120]
[321089182,1711890654913,-500.0,0.00055068,120]
[321089183,1711890654923,-500.0,0.00055068,120]
[321089184,1711890654932,-2280.35,0.00055068,120]
[321089185,1711890654944,-1969.2,0.00055068,120]
[321089186,1711890654953,-500.0,0.00055068,120]
[321089187,1711890654962,-500.0,0.00055068,120]
[321089188,1711890654971,-11044.72,0.00055068,120]
[321089189,1711890654980,-1309.04,0.00055068,120]
[321089190,1711890654990,-2277.86,0.00055068,120]
[321089191,1711890654999,-2650.98,0.00055068,120]
[321089192,1711890655008,-500.0,0.00055068,120]
[321089193,1711890655017,-3032.14,0.00055068,120]
[321089194,1711890655026,-1649.81,0.00055068,120]
[321089195,1711890655035,-500.0,0.00055068,120]
[321089196,1711890655045,-500.0,0.00055068,120]
[321089197,1711890655054,-500.0,0.00055068,120]
[321089198,1711890655063,-500.0,0.00055068,120]
[321089199,1711890655072,-978.66,0.00055068,120]
[321089200,1711890655081,-500.0,0.00055068,120]
[321089201,1711890655090,-1119.85,0.00055068,120]
[321089202,1711890655099,-500.0,0.00055068,120]
[321089203,1711890655109,-500.0,0.00055068,120]
[321089204,1711890655118,-251.976457,0.00055068,120]
[321089205,1711890655127,-500.0,0.00055068,120]
[321089206,1711890655137,-500.0,0.00055068,120]
[321089207,1711890655148,-500.0,0.00055068,7]
[321089208,1711890655157,-251.976457,0.00055068,120]
[321089209,1711890655167,-627.06,0.00055068,120]
[321089210,1711890655177,-500.0,0.00055068,120]
[321089211,1711890655186,-500.0,0.00055068,120]
[321089212,1711890655195,-500.0,0.00055068,120]
[321089213,1711890655205,-7777.83,0.00055068,120]
[321089214,1711890655214,-500.0,0.00055068,120]
[321089215,1711890655223,-1346.83,0.00055068,120]
[321089216,1711890655232,-2591.83,0.00055068,120]
[321089217,1711890655241,-500.0,0.00055068,120]
[321089218,1711890655250,-2450.66,0.00055068,120]
[321089219,1711890655259,-595.24,0.00055068,120]
[321089220,1711890655269,-5656.68,0.00055068,120]
[321089221,1711890655278,-588.1,0.00055068,16]
[321089222,1711890655287,-1878.45,0.00055068,120]
[321089223,1711890655297,-393.94375955,0.00055068,120]
[321089224,1711890655306,-500.0,0.00055068,120]
[321089225,1711890655315,-500.0,0.00055068,120]
[321089226,1711890655324,-1202.32,0.00055068,120]
[321089227,1711890655333,-2751.89,0.00055068,120]
[321089228,1711890655342,-500.0,0.00055068,120]
[321089229,1711890655351,-500.0,0.00055068,120]
[321089230,1711890655361,-500.0,0.00055068,120]
[321089231,1711890655370,-500.0,0.00055068,120]
[321089232,1711890655379,-500.0,0.00055068,120]
[321089233,1711890655389,-3264.01,0.00055068,120]
[321089234,1711890655399,-500.0,0.00055068,120]
[321089235,1711890655408,-500.0,0.00055068,120]
[321089236,1711890655417,-500.0,0.00055068,120]
[321089237,1711890655427,-500.0,0.00055068,120]
[321089238,1711890655437,-500.0,0.00055068,120]
[321089239,1711890655446,-1852.77,0.00055068,120]
[321089240,1711890655455,-1531.24,0.00055068,120]
[321089241,1711890655465,-500.0,0.00055068,120]
[321089242,1711890655474,-500.0,0.00055068,120]
[321089243,1711890655483,-250.24,0.00055068,120]
[321089244,1711890655493,-1444.64,0.00055068,120]
[321089245,1711890655504,-5674.98,0.00055068,120]
[321089246,1711890655518,-962.6,0.00055068,120]
[321089247,1711890655527,-1699.03,0.00055068,120]
[321089248,1711890655537,-500.0,0.00055068,120]
[321089249,1711890655547,-6457.47,0.00055068,120]
[321089250,1711890655557,-1686.23,0.00055068,120]
[321089251,1711890655567,-500.0,0.00055068,120]
[321089252,1711890655577,-500.0,0.00055068,120]
[321089253,1711890655588,-500.0,0.00055068,120]
[321089254,1711890655597,-500.0,0.00055068,120]
[321089255,1711890655606,-500.0,0.00055068,120]
[321089256,1711890655615,-10031.1,0.00055068,120]
[321089257,1711890655625,-2964.31,0.00055068,120]
[321089258,1711890655635,-500.0,0.00055068,120]
[321089259,1711890655645,-500.0,0.00055068,120]
[321089260,1711890655655,-500.0,0.00055068,120]
[321089261,1711890655665,-500.0,0.00055068,120]
[321089262,1711890655675,-500.0,0.00055068,120]
[321089263,1711890655687,-500.0,0.00055068,120]
[321089264,1711890655696,-1738.4,0.00055068,120]
[321089265,1711890655705,-1786.68,0.00055068,120]
[321089266,1711890655714,-600.44025865,0.00055068,2]
[321089267,1711890655723,-500.0,0.00055068,120]
[321089268,1711890655733,-500.0,0.00055068,120]
[321089269,1711890655742,-500.0,0.00055068,120]
[321089270,1711890655752,-1500.14,0.00055068,120]
[321089271,1711890655761,-562.17,0.00055068,120]
[321089272,1711890655771,-693.94,0.00055068,120]
[321089273,1711890655781,-2517.9,0.00055068,120]
[321089274,1711890655790,-500.0,0.00055068,120]
[321089275,1711890655801,-500.0,0.00055068,120]
[321089276,1711890655811,-500.0,0.00055068,120]
[321089277,1711890655821,-4170.51,0.00055068,120]
[321089278,1711890655831,-500.0,0.00055068,120]
[321089279,1711890655842,-811.03,0.00055068,120]
[321089280,1711890655852,-500.0,0.00055068,120]
[321089281,1711890655862,-500.0,0.00055068,120]
[321089282,1711890655873,-2488.29,0.00055068,120]
[321089283,1711890655883,-500.0,0.00055068,120]
[321089284,1711890655892,-151.0,0.00055068,120]
[321089285,1711890655902,-559.28,0.00055068,120]
[321089286,1711890655911,-500.0,0.00055068,120]
[321089287,1711890655920,-14317.17,0.00055068,120]
[321089288,1711890655929,-500.0,0.00055068,120]
[321089289,1711890655940,-1685.81,0.00055068,120]
[321089290,1711890655950,-500.0,0.00055068,120]
[321089291,1711890655959,-1854.38,0.00055068,120]
[321089292,1711890655969,-500.0,0.00055068,120]
[321089293,1711890655979,-500.0,0.00055068,120]
[321089294,1711890655988,-500.0,0.00055068,120]
[321089295,1711890655997,-12588.85,0.00055068,120]
[321089296,1711890656007,-500.0,0.00055068,120]
[321089297,1711890656016,-500.0,0.00055068,120]
[321089298,1711890656026,-1750.28,0.00055068,120]
[321089299,1711890656035,-500.0,0.00055068,120]
[321089300,1711890656044,-3585.51,0.00055068,21]
[321089301,1711890656053,-500.0,0.00055068,120]
[321089302,1711890656063,-1112.33,0.00055068,120]
[321089303,1711890656071,-500.0,0.00055068,120]
[321089304,1711890656081,-500.0,0.00055068,120]
[321089305,1711890656090,-500.0,0.00055068,120]
[321089306,1711890656099,-524.87,0.00055068,120]
[321089307,1711890656108,-500.0,0.00055068,120]
[321089308,1711890656118,-1107.53,0.00055068,120]
[321089309,1711890656127,-500.0,0.00055068,120]
[321089310,1711890656136,-500.0,0.00055068,120]
[321089311,1711890656145,-824.32174436,0.00055068,4]
[321089312,1711890656155,-500.0,0.00055068,120]
[321089313,1711890656164,-500.0,0.00055068,120]
[321089314,1711890656173,-500.0,0.00055068,120]
[321089315,1711890656182,-500.0,0.00055068,120]
[321089316,1711890656193,-1340.14,0.00055068,120]
[321089317,1711890656203,-1373.29,0.00055068,120]
[321089318,1711890656212,-500.0,0.00055068,120]
[321089319,1711890656221,-500.0,0.00055068,120]
[321089320,1711890656231,-151.0,0.00055068,120]
[321089321,1711890656241,-500.0,0.00055068,120]
[321089322,1711890656250,-500.0,0.00055068,120]
[321089323,1711890656260,-500.0,0.00055068,120]
[321089324,1711890656270,-168.21,0.00055068,2]
[321089325,1711890656280,-171.12,0.000551,30]
[321089326,1711890656289,-158.49,0.000551,14]
[321089327,1711890656299,-382.0,0.00055107,30]
[321089328,1711890656309,-209.95555556,0.00055233,120]
[321089329,1711890656320,-1000.0,0.00055338,120]
[321089330,1711890656330,-500.0,0.00055342,120]
[321089331,1711890656340,-500.0,0.00055342,120]
[321089332,1711890656350,-500.0,0.00055342,120]
[321089333,1711890656359,-500.0,0.00055342,120]
[321089334,1711890656369,-500.0,0.00055342,120]
[321089335,1711890656379,-500.0,0.00055342,120]
[321089336,1711890656389,-500.0,0.00055342,120]
[321089337,1711890656399,-475.0,0.00055342,120]
[321089338,1711890656409,-500.0,0.00055342,120]